[Event "Late-Titled-Tuesday-Blitz-June-04-2024"]
[Site "Chess.com"]
[Date "2024.06.04"]
[Round "10"]
[White "protectiago"]
[Black "Viktor_Poddubnyi"]
[Result "0-1"]
[WhiteElo "2120"]
[BlackElo "2336"]
[TimeControl "180+1"]
[EndTime "15:53:34 PDT"]
[Termination "Viktor_Poddubnyi won by resignation"]

1. d4 {[%clk 0:02:59.2]} 1... g6 {[%clk 0:03:00]} 2. c4 {[%clk 0:02:58.8]} 2...
Bg7 {[%clk 0:03:00.3]} 3. Nc3 {[%clk 0:02:57.8]} 3... c5 {[%clk 0:03:00.7]} 4.
d5 {[%clk 0:02:57.8]} 4... f5 {[%clk 0:03:00.9]} 5. g3 {[%clk 0:02:57.2]} 5...
Bxc3+ {[%clk 0:02:59]} 6. bxc3 {[%clk 0:02:56.9]} 6... Qa5 {[%clk 0:02:59.1]} 7.
Bd2 {[%clk 0:02:56.7]} 7... Nf6 {[%clk 0:02:58.7]} 8. Bg2 {[%clk 0:02:56.2]}
8... d6 {[%clk 0:02:59.2]} 9. Nf3 {[%clk 0:02:56.2]} 9... Nbd7 {[%clk
0:02:59.6]} 10. O-O {[%clk 0:02:55.9]} 10... Nb6 {[%clk 0:02:59]} 11. Qb3 {[%clk
0:02:50.3]} 11... Qa6 {[%clk 0:02:58.9]} 12. Bh6 {[%clk 0:02:41.3]} 12... Qxc4
{[%clk 0:02:56.3]} 13. Bg7 {[%clk 0:02:36.5]} 13... Rg8 {[%clk 0:02:51.9]} 14.
Bxf6 {[%clk 0:02:36.5]} 14... exf6 {[%clk 0:02:51.1]} 15. Rad1 {[%clk
0:02:27.6]} 15... Qxb3 {[%clk 0:02:46.2]} 16. axb3 {[%clk 0:02:27.5]} 16... Kf7
{[%clk 0:02:46.2]} 17. Ne1 {[%clk 0:02:15]} 17... Re8 {[%clk 0:02:42.9]} 18. e3
{[%clk 0:02:04.1]} 18... a5 {[%clk 0:02:37.4]} 19. Ra1 {[%clk 0:01:53]} 19... a4
{[%clk 0:02:37]} 20. Nd3 {[%clk 0:01:45]} 20... axb3 {[%clk 0:02:17.9]} 21. Rxa8
{[%clk 0:01:42.4]} 21... Nxa8 {[%clk 0:02:18.8]} 22. c4 {[%clk 0:01:41.8]} 22...
Nb6 {[%clk 0:01:55.5]} 23. Rb1 {[%clk 0:01:35.6]} 23... Nxc4 {[%clk 0:01:47.6]}
24. Rxb3 {[%clk 0:01:35.7]} 24... Ke7 {[%clk 0:01:35.4]} 25. Bf1 {[%clk
0:01:31]} 25... Nd2 {[%clk 0:01:33.5]} 26. Rb6 {[%clk 0:01:29.8]} 26... Nxf1
{[%clk 0:01:29.4]} 27. Kxf1 {[%clk 0:01:30.7]} 27... Kd7 {[%clk 0:01:28.1]} 28.
Nb2 {[%clk 0:01:25.6]} 28... Kc7 {[%clk 0:01:24.8]} 29. Nc4 {[%clk 0:01:21.4]}
29... Re4 {[%clk 0:01:22.9]} 30. Rxd6 {[%clk 0:01:07.1]} 30... Rxc4 {[%clk
0:01:21.5]} 31. Rxf6 {[%clk 0:01:07.7]} 31... b5 {[%clk 0:01:16.8]} 32. Rc6+
{[%clk 0:01:03.1]} 32... Kb7 {[%clk 0:01:12.9]} 33. Ke2 {[%clk 0:00:59.6]} 33...
Rc2+ {[%clk 0:00:57.5]} 34. Kf3 {[%clk 0:00:59.4]} 34... b4 {[%clk 0:00:55.5]}
35. e4 {[%clk 0:00:55.7]} 35... fxe4+ {[%clk 0:00:52.2]} 36. Kxe4 {[%clk
0:00:52.6]} 36... b3 {[%clk 0:00:52.1]} 0-1

[Event "Late-Titled-Tuesday-Blitz-June-04-2024"]
[Site "Chess.com"]
[Date "2024.06.04"]
[Round "10"]
[White "ACollins05"]
[Black "sammartin99"]
[Result "0-1"]
[WhiteElo "2436"]
[BlackElo "2315"]
[TimeControl "180+1"]
[EndTime "15:53:38 PDT"]
[Termination "sammartin99 won by checkmate"]

1. Nf3 {[%clk 0:03:00.9]} 1... d5 {[%clk 0:02:58.4]} 2. g3 {[%clk 0:03:01.8]}
2... Nf6 {[%clk 0:02:57.8]} 3. Bg2 {[%clk 0:03:01.6]} 3... Bf5 {[%clk
0:02:57.5]} 4. c4 {[%clk 0:02:59.6]} 4... c6 {[%clk 0:02:55.8]} 5. O-O {[%clk
0:02:57.8]} 5... e6 {[%clk 0:02:55.6]} 6. Qb3 {[%clk 0:02:56.3]} 6... Qb6 {[%clk
0:02:54.9]} 7. cxd5 {[%clk 0:02:55.9]} 7... Qxb3 {[%clk 0:02:47.8]} 8. axb3
{[%clk 0:02:54.4]} 8... exd5 {[%clk 0:02:47.4]} 9. d3 {[%clk 0:02:55]} 9... Nbd7
{[%clk 0:02:43]} 10. Nc3 {[%clk 0:02:53.7]} 10... Bc5 {[%clk 0:02:27.5]} 11. e4
{[%clk 0:02:52]} 11... dxe4 {[%clk 0:02:20.4]} 12. dxe4 {[%clk 0:02:52.9]} 12...
Bg6 {[%clk 0:02:17.4]} 13. Nh4 {[%clk 0:02:47.1]} 13... O-O {[%clk 0:02:13.1]}
14. Nxg6 {[%clk 0:02:42]} 14... hxg6 {[%clk 0:02:01.9]} 15. Bf4 {[%clk
0:02:42.9]} 15... Ng4 {[%clk 0:01:48.7]} 16. h3 {[%clk 0:02:41.7]} 16... Nge5
{[%clk 0:01:47.5]} 17. Rfd1 {[%clk 0:02:39.4]} 17... a6 {[%clk 0:01:44.1]} 18.
Bf1 {[%clk 0:02:29.7]} 18... Rfe8 {[%clk 0:01:39.2]} 19. Kg2 {[%clk 0:02:28.6]}
19... f6 {[%clk 0:01:33.4]} 20. Bc4+ {[%clk 0:02:28]} 20... Nxc4 {[%clk
0:01:28.5]} 21. bxc4 {[%clk 0:02:28.9]} 21... Ne5 {[%clk 0:01:26.9]} 22. Bxe5
{[%clk 0:02:27.2]} 22... fxe5 {[%clk 0:01:22.6]} 23. Rd7 {[%clk 0:02:27.1]}
23... Re7 {[%clk 0:01:19.2]} 24. Rad1 {[%clk 0:02:26.6]} 24... Kf7 {[%clk
0:01:13.9]} 25. Na4 {[%clk 0:02:25.8]} 25... Bd4 {[%clk 0:01:12.7]} 26. Rxe7+
{[%clk 0:02:21.6]} 26... Kxe7 {[%clk 0:01:13.6]} 27. Rd3 {[%clk 0:02:15]} 27...
b5 {[%clk 0:01:05.8]} 28. cxb5 {[%clk 0:02:14.2]} 28... axb5 {[%clk 0:01:05.3]}
29. Nc3 {[%clk 0:02:15.1]} 29... b4 {[%clk 0:00:58.7]} 30. Nd1 {[%clk
0:02:12.2]} 30... c5 {[%clk 0:00:57.6]} 31. b3 {[%clk 0:02:11.9]} 31... Ra3
{[%clk 0:00:55.7]} 32. Ne3 {[%clk 0:02:11]} 32... Bxe3 {[%clk 0:00:44.5]} 33.
Rxe3 {[%clk 0:02:11.9]} 33... c4 {[%clk 0:00:45.1]} 34. Kf1 {[%clk 0:02:10.6]}
34... Rxb3 {[%clk 0:00:41.7]} 35. Re1 {[%clk 0:02:05.4]} 35... c3 {[%clk
0:00:39.4]} 36. Ke2 {[%clk 0:02:05.5]} 36... Rb2+ {[%clk 0:00:39.3]} 37. Kd3
{[%clk 0:02:03.4]} 37... c2 {[%clk 0:00:35.1]} 38. Kd2 {[%clk 0:01:57.9]} 38...
b3 {[%clk 0:00:34.3]} 39. f4 {[%clk 0:01:41.4]} 39... Rb1 {[%clk 0:00:30.4]} 40.
Rc1 {[%clk 0:01:40.1]} 40... Kd6 {[%clk 0:00:23.8]} 41. h4 {[%clk 0:01:37.4]}
41... Kc5 {[%clk 0:00:17.7]} 42. f5 {[%clk 0:01:32.7]} 42... gxf5 {[%clk
0:00:15.7]} 43. exf5 {[%clk 0:01:33.6]} 43... Kd4 {[%clk 0:00:13.1]} 44. h5
{[%clk 0:01:33.2]} 44... Rxc1 {[%clk 0:00:12.9]} 45. Kxc1 {[%clk 0:01:33]} 45...
Kc3 {[%clk 0:00:13.4]} 46. f6 {[%clk 0:01:31.6]} 46... b2# {[%clk 0:00:14.3]}
0-1

[Event "Late-Titled-Tuesday-Blitz-June-04-2024"]
[Site "Chess.com"]
[Date "2024.06.04"]
[Round "10"]
[White "jinxy2009"]
[Black "1g60-1"]
[Result "0-1"]
[WhiteElo "2282"]
[BlackElo "2451"]
[TimeControl "180+1"]
[EndTime "15:53:40 PDT"]
[Termination "1g60-1 won on time"]

1. c4 {[%clk 0:02:58.7]} 1... f5 {[%clk 0:02:59.2]} 2. Nc3 {[%clk 0:02:58]} 2...
Nf6 {[%clk 0:02:59.1]} 3. g3 {[%clk 0:02:55.9]} 3... e6 {[%clk 0:02:57.9]} 4.
Bg2 {[%clk 0:02:55.6]} 4... Be7 {[%clk 0:02:58.4]} 5. d4 {[%clk 0:02:55.8]} 5...
O-O {[%clk 0:02:58.6]} 6. Nf3 {[%clk 0:02:56.4]} 6... d6 {[%clk 0:02:59.1]} 7.
O-O {[%clk 0:02:56.7]} 7... Ne4 {[%clk 0:02:59.6]} 8. d5 {[%clk 0:02:50.9]} 8...
Nxc3 {[%clk 0:02:58.4]} 9. bxc3 {[%clk 0:02:50.9]} 9... e5 {[%clk 0:02:59.2]}
10. e4 {[%clk 0:02:33.8]} 10... f4 {[%clk 0:02:59.1]} 11. c5 {[%clk 0:02:27]}
11... Qe8 {[%clk 0:02:58.8]} 12. c4 {[%clk 0:02:17.7]} 12... Qh5 {[%clk
0:02:57.7]} 13. cxd6 {[%clk 0:02:15.5]} 13... cxd6 {[%clk 0:02:57.7]} 14. c5
{[%clk 0:02:02.2]} 14... Bg4 {[%clk 0:02:49]} 15. Qb3 {[%clk 0:01:42.1]} 15...
Nd7 {[%clk 0:02:15.3]} 16. Ba3 {[%clk 0:01:40.5]} 16... Rab8 {[%clk 0:02:00.2]}
17. cxd6 {[%clk 0:01:38.6]} 17... Bf6 {[%clk 0:02:00.4]} 18. Bb2 {[%clk
0:01:20.3]} 18... Bd8 {[%clk 0:01:55.9]} 19. gxf4 {[%clk 0:01:03.4]} 19... Rxf4
{[%clk 0:01:52.9]} 20. Nd2 {[%clk 0:00:21.2]} 20... Be2 {[%clk 0:01:44.1]} 21.
Rfe1 {[%clk 0:00:19]} 21... Bb6 {[%clk 0:01:44.7]} 22. Qg3 {[%clk 0:00:01.7]}
22... Bxf2+ {[%clk 0:01:32.3]} 23. Qxf2 {[%clk 0:00:01.7]} 23... Rxf2 {[%clk
0:01:32.7]} 24. Kxf2 {[%clk 0:00:02.6]} 24... Ba6 {[%clk 0:01:27.6]} 25. Kg1
{[%clk 0:00:03]} 25... Qh6 {[%clk 0:01:24.1]} 26. Nf3 {[%clk 0:00:03.2]} 26...
Qxd6 {[%clk 0:01:24.1]} 27. Rac1 {[%clk 0:00:02.2]} 27... h6 {[%clk 0:01:21.4]}
28. Rc3 {[%clk 0:00:02.5]} 28... Qb6+ {[%clk 0:01:20.9]} 29. Kh1 {[%clk
0:00:01.5]} 29... Qxb2 {[%clk 0:01:20.2]} 30. Rc7 {[%clk 0:00:01.8]} 30... Nf6
{[%clk 0:01:15.8]} 31. d6 {[%clk 0:00:01.7]} 31... Rd8 {[%clk 0:01:13.3]} 32. d7
{[%clk 0:00:01.2]} 32... Rxd7 {[%clk 0:01:12.3]} 0-1

[Event "Late-Titled-Tuesday-Blitz-June-04-2024"]
[Site "Chess.com"]
[Date "2024.06.04"]
[Round "10"]
[White "MITerryble"]
[Black "IlanSchnaider"]
[Result "1-0"]
[WhiteElo "3033"]
[BlackElo "2795"]
[TimeControl "180+1"]
[EndTime "15:53:41 PDT"]
[Termination "MITerryble won by resignation"]

1. d4 {[%clk 0:03:00.9]} 1... Nf6 {[%clk 0:02:59]} 2. Bg5 {[%clk 0:03:00.6]}
2... d5 {[%clk 0:02:58.5]} 3. e3 {[%clk 0:03:00.7]} 3... c5 {[%clk 0:02:56.7]}
4. c3 {[%clk 0:03:00.8]} 4... e6 {[%clk 0:02:56.9]} 5. Nd2 {[%clk 0:03:00.2]}
5... Bd7 {[%clk 0:02:57]} 6. Ngf3 {[%clk 0:02:59]} 6... Nc6 {[%clk 0:02:57.2]}
7. Bd3 {[%clk 0:02:58.9]} 7... Bd6 {[%clk 0:02:57.4]} 8. O-O {[%clk 0:02:57.4]}
8... h6 {[%clk 0:02:57.8]} 9. Bh4 {[%clk 0:02:57.1]} 9... O-O {[%clk 0:02:52.5]}
10. dxc5 {[%clk 0:02:57.3]} 10... Bxc5 {[%clk 0:02:52.7]} 11. e4 {[%clk
0:02:57.8]} 11... dxe4 {[%clk 0:02:48]} 12. Nxe4 {[%clk 0:02:56.4]} 12... Be7
{[%clk 0:02:48.7]} 13. Bg3 {[%clk 0:02:51.3]} 13... Qb6 {[%clk 0:02:38.1]} 14.
Qe2 {[%clk 0:02:47]} 14... Rad8 {[%clk 0:02:34.9]} 15. Rad1 {[%clk 0:02:36.6]}
15... Na5 {[%clk 0:02:20]} 16. b4 {[%clk 0:02:30.5]} 16... Nc6 {[%clk
0:02:11.2]} 17. a3 {[%clk 0:02:30.6]} 17... Rfe8 {[%clk 0:02:06.5]} 18. c4
{[%clk 0:02:27.6]} 18... Nd4 {[%clk 0:01:34]} 19. Nxd4 {[%clk 0:02:23.6]} 19...
Qxd4 {[%clk 0:01:34.9]} 20. Nd6 {[%clk 0:02:17.2]} 20... Qc3 {[%clk 0:01:12]}
21. Nxb7 {[%clk 0:02:05.1]} 21... Rc8 {[%clk 0:01:06]} 22. Be5 {[%clk
0:01:54.5]} 22... Qxa3 {[%clk 0:01:04]} 23. Ra1 {[%clk 0:01:54]} 23... Qxb4
{[%clk 0:00:34.8]} 24. Rfb1 {[%clk 0:01:53.8]} 24... Bc6 {[%clk 0:00:26.7]} 25.
Rxb4 {[%clk 0:01:48.9]} 25... Bxb4 {[%clk 0:00:27.6]} 26. Nd6 {[%clk 0:01:44.1]}
26... Bxd6 {[%clk 0:00:27.5]} 27. Bxd6 {[%clk 0:01:45]} 27... Red8 {[%clk
0:00:23.5]} 28. Be7 {[%clk 0:01:38.5]} 28... Rd7 {[%clk 0:00:22.2]} 29. Bxf6
{[%clk 0:01:38.1]} 29... gxf6 {[%clk 0:00:22.9]} 30. Be4 {[%clk 0:01:36]} 30...
Bxe4 {[%clk 0:00:20.3]} 31. Qxe4 {[%clk 0:01:36.9]} 31... Rdc7 {[%clk
0:00:20.9]} 32. Ra4 {[%clk 0:01:32.5]} 32... f5 {[%clk 0:00:19.5]} 33. Qf4
{[%clk 0:01:32.5]} 33... Kg7 {[%clk 0:00:19.3]} 34. h3 {[%clk 0:01:30.4]} 34...
Rd7 {[%clk 0:00:19.6]} 35. Ra3 {[%clk 0:01:21.8]} 35... Kh7 {[%clk 0:00:15.8]}
36. Rg3 {[%clk 0:01:20.5]} 36... Rg8 {[%clk 0:00:15.9]} 37. Rxg8 {[%clk
0:01:18.1]} 37... Kxg8 {[%clk 0:00:16.8]} 38. c5 {[%clk 0:01:18.7]} 38... Rd5
{[%clk 0:00:12.5]} 39. c6 {[%clk 0:01:17.4]} 39... Rc5 {[%clk 0:00:13.2]} 40.
Qb8+ {[%clk 0:01:17.5]} 1-0

[Event "Late-Titled-Tuesday-Blitz-June-04-2024"]
[Site "Chess.com"]
[Date "2024.06.04"]
[Round "10"]
[White "AradNazari"]
[Black "Chessdreamer2020"]
[Result "0-1"]
[WhiteElo "2718"]
[BlackElo "2579"]
[TimeControl "180+1"]
[EndTime "15:53:43 PDT"]
[Termination "Chessdreamer2020 won by resignation"]

1. e3 {[%clk 0:03:00.9]} 1... e5 {[%clk 0:02:58.6]} 2. d3 {[%clk 0:02:57.8]}
2... d6 {[%clk 0:02:57.7]} 3. Ne2 {[%clk 0:02:58.3]} 3... f5 {[%clk 0:02:58]} 4.
Nd2 {[%clk 0:02:58.8]} 4... Nf6 {[%clk 0:02:58.3]} 5. g3 {[%clk 0:02:57.3]} 5...
Be7 {[%clk 0:02:57.6]} 6. Bg2 {[%clk 0:02:57.8]} 6... O-O {[%clk 0:02:57.9]} 7.
b3 {[%clk 0:02:58.2]} 7... Qe8 {[%clk 0:02:57.6]} 8. Bb2 {[%clk 0:02:58.9]} 8...
Qh5 {[%clk 0:02:57.8]} 9. c4 {[%clk 0:02:59.3]} 9... Nc6 {[%clk 0:02:55.4]} 10.
Nc3 {[%clk 0:02:54.5]} 10... Qg6 {[%clk 0:02:54.3]} 11. Nd5 {[%clk 0:02:51.1]}
11... Bd8 {[%clk 0:02:52.2]} 12. Nxf6+ {[%clk 0:02:49.7]} 12... Bxf6 {[%clk
0:02:50.9]} 13. Qe2 {[%clk 0:02:43.6]} 13... a5 {[%clk 0:02:47]} 14. a3 {[%clk
0:02:41.3]} 14... Be6 {[%clk 0:02:45.5]} 15. Rc1 {[%clk 0:02:23.7]} 15... Rad8
{[%clk 0:02:41.9]} 16. O-O {[%clk 0:02:23.9]} 16... d5 {[%clk 0:02:34.4]} 17.
cxd5 {[%clk 0:02:23.6]} 17... Bxd5 {[%clk 0:02:35.3]} 18. e4 {[%clk 0:02:19.3]}
18... Be6 {[%clk 0:02:29.5]} 19. Nc4 {[%clk 0:02:13.8]} 19... f4 {[%clk
0:02:26.5]} 20. Kh1 {[%clk 0:02:03.6]} 20... Rd7 {[%clk 0:02:06.9]} 21. gxf4
{[%clk 0:01:54.1]} 21... exf4 {[%clk 0:02:06.8]} 22. e5 {[%clk 0:01:52.8]} 22...
Bg5 {[%clk 0:02:06.2]} 23. Be4 {[%clk 0:01:45.9]} 23... f3 {[%clk 0:01:57.7]}
24. Qd1 {[%clk 0:01:24.8]} 24... Qh5 {[%clk 0:01:51.5]} 25. Rg1 {[%clk
0:01:11.8]} 25... Bf4 {[%clk 0:01:47.4]} 26. Rg3 {[%clk 0:01:06.3]} 26... Bxg3
{[%clk 0:01:46.9]} 27. fxg3 {[%clk 0:01:05.5]} 27... Bh3 {[%clk 0:01:40.4]} 28.
Nd2 {[%clk 0:00:39.7]} 28... Bg2+ {[%clk 0:01:31.8]} 29. Kg1 {[%clk 0:00:39]}
29... Nxe5 {[%clk 0:01:25.1]} 30. Bxe5 {[%clk 0:00:34.8]} 30... Qxe5 {[%clk
0:01:24.3]} 31. Nxf3 {[%clk 0:00:17.4]} 31... Bxf3 {[%clk 0:01:22.8]} 32. Bxf3
{[%clk 0:00:17.6]} 32... Qe3+ {[%clk 0:01:22.7]} 33. Kg2 {[%clk 0:00:18.1]}
33... Rxd3 {[%clk 0:01:21.2]} 34. Bd5+ {[%clk 0:00:16.1]} 34... Kh8 {[%clk
0:01:19.9]} 35. Qh5 {[%clk 0:00:15.6]} 35... Qd2+ {[%clk 0:01:16.4]} 36. Kh3
{[%clk 0:00:14.7]} 36... Rxd5 {[%clk 0:01:16.6]} 0-1

[Event "Late-Titled-Tuesday-Blitz-June-04-2024"]
[Site "Chess.com"]
[Date "2024.06.04"]
[Round "10"]
[White "Laico"]
[Black "annasargsyan_m"]
[Result "1-0"]
[WhiteElo "2435"]
[BlackElo "2578"]
[TimeControl "180+1"]
[EndTime "15:53:43 PDT"]
[Termination "Laico won by resignation"]

1. e4 {[%clk 0:02:57.5]} 1... c6 {[%clk 0:01:16.4]} 2. d4 {[%clk 0:02:56.4]}
2... d5 {[%clk 0:01:17.3]} 3. f3 {[%clk 0:02:57.1]} 3... dxe4 {[%clk 0:01:17.1]}
4. fxe4 {[%clk 0:02:58]} 4... e5 {[%clk 0:01:17.5]} 5. Nf3 {[%clk 0:02:58.7]}
5... Bg4 {[%clk 0:01:18]} 6. Bc4 {[%clk 0:02:58.6]} 6... Nd7 {[%clk 0:01:18.7]}
7. c3 {[%clk 0:02:58.4]} 7... Bd6 {[%clk 0:01:19.1]} 8. Qb3 {[%clk 0:02:58.2]}
8... Qe7 {[%clk 0:01:18.9]} 9. Qxb7 {[%clk 0:02:57.7]} 9... Rb8 {[%clk
0:01:19.5]} 10. Qxc6 {[%clk 0:02:57.2]} 10... Nf6 {[%clk 0:01:20.1]} 11. O-O
{[%clk 0:02:41.6]} 11... O-O {[%clk 0:01:20.6]} 12. dxe5 {[%clk 0:02:24.2]}
12... Nxe5 {[%clk 0:01:19.2]} 13. Nxe5 {[%clk 0:02:23.6]} 13... Qxe5 {[%clk
0:01:19.8]} 14. Bf4 {[%clk 0:02:20.4]} 14... Bc5+ {[%clk 0:01:18.1]} 15. Kh1
{[%clk 0:02:17.2]} 15... Qxe4 {[%clk 0:01:14.2]} 16. Qxe4 {[%clk 0:02:09.1]}
16... Nxe4 {[%clk 0:01:15.1]} 17. Bxb8 {[%clk 0:02:09.3]} 17... Rxb8 {[%clk
0:01:14.9]} 18. Rxf7 {[%clk 0:01:45.3]} 18... Kh8 {[%clk 0:01:10.6]} 19. b4
{[%clk 0:01:45.4]} 19... Nf2+ {[%clk 0:00:56]} 20. Kg1 {[%clk 0:01:45.1]} 20...
Bb6 {[%clk 0:00:49.1]} 21. Kf1 {[%clk 0:01:14.3]} 21... Ne4 {[%clk 0:00:40.7]}
22. Rf4 {[%clk 0:01:07.2]} 22... Nf6 {[%clk 0:00:40.2]} 23. Nd2 {[%clk
0:01:01.1]} 23... Be3 {[%clk 0:00:39.9]} 24. Rxg4 {[%clk 0:00:40.8]} 24... Nxg4
{[%clk 0:00:39.7]} 25. Nf3 {[%clk 0:00:41.5]} 25... Rc8 {[%clk 0:00:39.4]} 26.
Be6 {[%clk 0:00:40.3]} 26... Rxc3 {[%clk 0:00:28.7]} 27. Bxg4 {[%clk 0:00:39.1]}
27... Rc4 {[%clk 0:00:29.1]} 28. Re1 {[%clk 0:00:35.7]} 1-0

[Event "Late-Titled-Tuesday-Blitz-June-04-2024"]
[Site "Chess.com"]
[Date "2024.06.04"]
[Round "10"]
[White "xasid81"]
[Black "Love7Unicorn"]
[Result "0-1"]
[WhiteElo "2621"]
[BlackElo "2567"]
[TimeControl "180+1"]
[EndTime "15:53:49 PDT"]
[Termination "Love7Unicorn won by resignation"]

1. Nc3 {[%clk 0:03:00.9]} 1... c5 {[%clk 0:02:52.4]} 2. Nf3 {[%clk 0:03:01.7]}
2... Nc6 {[%clk 0:02:51.8]} 3. e4 {[%clk 0:03:02.1]} 3... g6 {[%clk 0:02:51.6]}
4. Bb5 {[%clk 0:03:02.5]} 4... Qb6 {[%clk 0:02:50]} 5. O-O {[%clk 0:03:00.3]}
5... Bg7 {[%clk 0:02:45.9]} 6. Nd5 {[%clk 0:02:58.6]} 6... Qd8 {[%clk 0:02:46]}
7. c3 {[%clk 0:02:58.1]} 7... e6 {[%clk 0:02:42.6]} 8. Ne3 {[%clk 0:02:57.4]}
8... Nge7 {[%clk 0:02:40.6]} 9. d4 {[%clk 0:02:57]} 9... cxd4 {[%clk 0:02:39.8]}
10. cxd4 {[%clk 0:02:57.9]} 10... a6 {[%clk 0:02:39.7]} 11. Ba4 {[%clk 0:02:54]}
11... d5 {[%clk 0:02:35.4]} 12. exd5 {[%clk 0:02:51.1]} 12... exd5 {[%clk
0:02:33.8]} 13. h3 {[%clk 0:02:48.7]} 13... O-O {[%clk 0:02:33.3]} 14. Re1
{[%clk 0:02:43.9]} 14... h6 {[%clk 0:02:27.8]} 15. Ng4 {[%clk 0:02:43.3]} 15...
Bxg4 {[%clk 0:02:20.1]} 16. hxg4 {[%clk 0:02:43.2]} 16... b5 {[%clk 0:02:20.7]}
17. Bc2 {[%clk 0:02:40.5]} 17... Re8 {[%clk 0:02:08.1]} 18. Ne5 {[%clk 0:02:39]}
18... Nxd4 {[%clk 0:01:40.7]} 19. Qxd4 {[%clk 0:02:30.6]} 19... Nc6 {[%clk
0:01:40.6]} 20. Qd1 {[%clk 0:01:59.1]} 20... Nxe5 {[%clk 0:01:37]} 21. Bf4
{[%clk 0:01:54.2]} 21... Rc8 {[%clk 0:01:36.6]} 22. Bb3 {[%clk 0:01:53.2]} 22...
d4 {[%clk 0:01:32.4]} 23. Rc1 {[%clk 0:01:47.4]} 23... Rxc1 {[%clk 0:01:28]} 24.
Bxc1 {[%clk 0:01:48.3]} 24... Nc4 {[%clk 0:00:56.9]} 25. Rxe8+ {[%clk
0:01:45.7]} 25... Qxe8 {[%clk 0:00:57.8]} 26. Bc2 {[%clk 0:01:42.2]} 26... Qe6
{[%clk 0:00:48]} 27. b3 {[%clk 0:01:41.1]} 27... Ne5 {[%clk 0:00:45.3]} 28. f3
{[%clk 0:01:41.2]} 28... Qb6 {[%clk 0:00:35.6]} 29. Kh1 {[%clk 0:01:39]} 29...
Qf6 {[%clk 0:00:30.7]} 30. Qxd4 {[%clk 0:01:31.3]} 30... Qh4+ {[%clk 0:00:26]}
31. Kg1 {[%clk 0:01:30.9]} 31... Qe1+ {[%clk 0:00:24.6]} 32. Kh2 {[%clk
0:01:29.7]} 32... Qxc1 {[%clk 0:00:24.2]} 33. Qd8+ {[%clk 0:01:22.5]} 33... Kh7
{[%clk 0:00:23.3]} 34. Qc7 {[%clk 0:01:21.7]} 34... Qf4+ {[%clk 0:00:20.5]} 35.
Kh1 {[%clk 0:01:19.3]} 35... Qe3 {[%clk 0:00:13.4]} 36. a4 {[%clk 0:01:13]}
36... bxa4 {[%clk 0:00:10.2]} 37. bxa4 {[%clk 0:01:13.9]} 37... Qe1+ {[%clk
0:00:09.7]} 38. Kh2 {[%clk 0:01:13.6]} 38... Nxf3+ {[%clk 0:00:06.9]} 39. gxf3
{[%clk 0:01:13.8]} 39... Be5+ {[%clk 0:00:07.5]} 0-1

[Event "Late-Titled-Tuesday-Blitz-June-04-2024"]
[Site "Chess.com"]
[Date "2024.06.04"]
[Round "10"]
[White "jinbojinbo"]
[Black "snowlord"]
[Result "1-0"]
[WhiteElo "2708"]
[BlackElo "2902"]
[TimeControl "180+1"]
[EndTime "15:54:03 PDT"]
[Termination "jinbojinbo won by resignation"]

1. e4 {[%clk 0:03:00.9]} 1... Nc6 {[%clk 0:02:55.5]} 2. d4 {[%clk 0:02:53.6]}
2... e5 {[%clk 0:02:55.2]} 3. Nf3 {[%clk 0:02:45.4]} 3... exd4 {[%clk
0:02:53.4]} 4. Nxd4 {[%clk 0:02:46.1]} 4... Qf6 {[%clk 0:02:52.5]} 5. Be3 {[%clk
0:02:39.7]} 5... Bc5 {[%clk 0:02:50]} 6. c3 {[%clk 0:02:39.4]} 6... Qg6 {[%clk
0:02:46.9]} 7. Nd2 {[%clk 0:02:37.4]} 7... Nge7 {[%clk 0:02:30.3]} 8. g3 {[%clk
0:02:30.5]} 8... Bxd4 {[%clk 0:02:18.1]} 9. cxd4 {[%clk 0:02:28.8]} 9... d5
{[%clk 0:02:18.7]} 10. Bg2 {[%clk 0:02:18]} 10... O-O {[%clk 0:02:18.8]} 11. O-O
{[%clk 0:02:17.5]} 11... dxe4 {[%clk 0:02:13.3]} 12. Nxe4 {[%clk 0:02:14.9]}
12... Bf5 {[%clk 0:02:07]} 13. Nc3 {[%clk 0:02:11.2]} 13... Rad8 {[%clk
0:02:05.8]} 14. d5 {[%clk 0:02:01.9]} 14... Ne5 {[%clk 0:02:02.7]} 15. Qb3
{[%clk 0:01:55.6]} 15... b6 {[%clk 0:01:53.8]} 16. Bf4 {[%clk 0:01:55]} 16...
Qf6 {[%clk 0:01:36.7]} 17. Qa3 {[%clk 0:01:43.9]} 17... N7g6 {[%clk 0:01:26.8]}
18. Bxe5 {[%clk 0:01:42.8]} 18... Nxe5 {[%clk 0:01:27.7]} 19. Qxa7 {[%clk
0:01:42.2]} 19... Rd7 {[%clk 0:00:55.5]} 20. Ne4 {[%clk 0:01:33.4]} 20... Bxe4
{[%clk 0:00:42.5]} 21. Bxe4 {[%clk 0:01:34.3]} 21... h5 {[%clk 0:00:38]} 22. h4
{[%clk 0:01:31.6]} 22... g5 {[%clk 0:00:33.8]} 23. hxg5 {[%clk 0:01:25.9]} 23...
Qxg5 {[%clk 0:00:34.7]} 24. Bg2 {[%clk 0:01:25.8]} 24... Ng4 {[%clk 0:00:29]}
25. Qa3 {[%clk 0:01:10.1]} 25... Re7 {[%clk 0:00:23.5]} 26. d6 {[%clk
0:00:55.4]} 26... cxd6 {[%clk 0:00:23.1]} 27. Qxd6 {[%clk 0:00:56.3]} 27... Re2
{[%clk 0:00:20.9]} 28. Rad1 {[%clk 0:00:54]} 28... Rxb2 {[%clk 0:00:20.1]} 29.
Rd5 {[%clk 0:00:53.3]} 29... Qg6 {[%clk 0:00:20.5]} 30. Qf4 {[%clk 0:00:52]}
30... f6 {[%clk 0:00:16.9]} 31. Rd7 {[%clk 0:00:49]} 31... Rb5 {[%clk
0:00:10.7]} 32. Qc4+ {[%clk 0:00:44.9]} 1-0